[Event "Wuerttemberg Rapid Teams 2024"]
[Site "B?blingen, Germany"]
[Date "2024.04.13"]
[Round "9.26"]
[White "Kaufmann, Thorsten"]
[Black "Bodriyenko, Markiyan"]
[Result "1-0"]
[ECO "C70"]
[WhiteElo "2057"]
[BlackElo "1728"]
[Annotator "NA RC"]
[PlyCount "125"]
[EventDate "2024.04.13"]
[EventType "team-tourn"]
[SourceTitle "playchess.com"]
[Source "ChessBase"]
[SourceQuality "1"]
[TimeControl "900+5"]

1. e4 {[%emt 0:00:01]} e5 {[%emt 0:00:00]} 2. Nf3 {[%emt 0:00:01]} Nc6 {[%emt 0:00:01]} 3. Bb5 {[%emt 0:00:01]} a6 {[%emt 0:00:01]} 4. Ba4 {[%emt 0:00:01]} f5 {[%emt 0:00:01]} 5. Nc3 {[%emt 0:00:01]} Nf6 {[%emt 0:00:03]} 6. Qe2 {[%emt 0:00:06]} d6 {[%emt 0:00:23]} 7. Bxc6+ {[%emt 0:00:11]} bxc6 {[%emt 0:00:01]} 8. d4 {[%emt 0:00:01]} exd4 {[%emt 0:02:38]} 9. exf5+ {[%emt 0:00:08]} Qe7 {[%emt 0:00:14]} 10. Nxd4 {[%emt 0:00:20]} Qxe2+ {[%emt 0:00:20]} 11. Ncxe2 {[%emt 0:00:02]} c5 {[%emt 0:00:01]} 12. Ne6 {[%emt 0:00:02]} Bxe6 {[%emt 0:00:39]} 13. fxe6 {[%emt 0:00:02]} h6 {[%emt 0:00:14]} 14. O-O {[%emt 0:00:05]} g5 {[%emt 0:00:44]} 15. f4 {[%emt 0:00:01]} gxf4 {[%emt 0:00:00]} 16. Nxf4 {[%emt 0:00:04]} Bg7 {[%emt 0:00:02]} 17. e7 {[%emt 0:00:10]} Rg8 {[%emt 0:00:44]} 18. Ne6 {[%emt 0:00:17]} Kxe7 {[%emt 0:00:17]} 19. Nxg7 {[%emt 0:00:06]} Rxg7 {[%emt 0:00:01]} 20. Bxh6 {[%emt 0:00:02]} Rg6 {[%emt 0:00:02]} 21. Rae1+ {[%emt 0:00:04]} Kd7 {[%emt 0:00:02]} 22. Bg5 {[%emt 0:00:44]} Nd5 {[%emt 0:00:15]} 23. h4 {[%emt 0:00:15]} Rag8 {[%emt 0:00:13]} 24. Rf7+ {[%emt 0:00:14]} Kc6 {[%emt 0:00:02]} 25. c4 {[%emt 0:00:05]} Nb4 {[%emt 0:00:20]} 26. a3 {[%emt 0:01:30]} Nd3 {[%emt 0:00:06]} 27. Ree7 {[%emt 0:00:26]} Rc8 {[%emt 0:00:48]} 28. b3 {[%emt 0:00:04]} Ne5 {[%emt 0:00:10]} 29. Rf5 {[%emt 0:00:09]} Rcg8 {[%emt 0:00:10]} 30. Rexe5 {[%emt 0:00:40]} dxe5 {[%emt 0:00:05]} 31. Rxe5 {[%emt 0:00:01]} Rd6 {[%emt 0:00:10]} 32. Re3 {[%emt 0:00:12]} Rf8 {[%emt 0:00:15]} 33. Be7 {[%emt 0:00:08]} Rd1+ {[%emt 0:00:01]} 34. Kh2 {[%emt 0:00:01]} Rg8 {[%emt 0:01:03]} 35. Bg5 {[%emt 0:00:16]} Ra1 {[%emt 0:00:18]} 36. a4 {[%emt 0:00:10]} Rd1 {[%emt 0:00:17]} 37. g3 {[%emt 0:00:07]} Kb6 {[%emt 0:00:22]} 38. Be7 {[%emt 0:00:11]} Kc6 {[%emt 0:00:50]} 39. Bg5 {[%emt 0:00:59]} Kb6 {[%emt 0:00:06]} 40. Bf4 {[%emt 0:00:03]} Rg7 {[%emt 0:00:20]} 41. Re8 {[%emt 0:00:29]} Rd3 {[%emt 0:00:12]} 42. Rb8+ {[%emt 0:00:06]} Ka7 {[%emt 0:00:07]} 43. Re8 {[%emt 0:00:13]} Rxb3 {[%emt 0:00:04]} 44. Re5 {[%emt 0:00:04]} Kb6 {[%emt 0:00:05]} 45. h5 {[%emt 0:00:07]} Ka5 {[%emt 0:00:07]} 46. Rxc5+ {[%emt 0:00:08]} Kxa4 {[%emt 0:00:02]} 47. h6 {[%emt 0:00:01]} Rh7 {[%emt 0:00:13]} 48. Rxc7 {[%emt 0:00:02]} Rxc7 {[%emt 0:00:04]} 49. Bxc7 {[%emt 0:00:01]} Rb7 {[%emt 0:00:03]} 50. h7 {[%emt 0:00:02]} Rxc7 {[%emt 0:00:08]} 51. h8=Q {[%emt 0:00:02]} Rxc4 {[%emt 0:00:08]} 52. Qa1+ {[%emt 0:00:08]} Kb5 {[%emt 0:00:01]} 53. Qe5+ {[%emt 0:00:05]} Kb4 {[%emt 0:00:08]} 54. Qd6+ {[%emt 0:00:02]} Kb5 {[%emt 0:00:08]} 55. Qd5+ {[%emt 0:00:03]} Rc5 {[%emt 0:00:43]} 56. Qd3+ {[%emt 0:00:01]} Rc4 {[%emt 0:00:04]} 57. g4 {[%emt 0:00:02]} a5 {[%emt 0:00:02]} 58. g5 {[%emt 0:00:02]} a4 {[%emt 0:00:04]} 59. g6 {[%emt 0:00:03]} Kb4 {[%emt 0:00:12]} 60. Qxc4+ {[%emt 0:00:01]} Kxc4 {[%emt 0:00:02]} 61. g7 {[%emt 0:00:01]} a3 {[%emt 0:00:07]} 62. g8=Q+ {[%emt 0:00:02]} Kb4 {[%emt 0:00:06]} 63. Qa2 {[%emt 0:00:05]} 1-0

[Event "Wuerttemberg Rapid Teams 2024"]
[Site "B?blingen, Germany"]
[Date "2024.04.13"]
[Round "9.27"]
[White "Albrecht, Neil"]
[Black "Retzlaff, Kian"]
[Result "0-1"]
[ECO "D04"]
[WhiteElo "1950"]
[BlackElo "1793"]
[Annotator "TA"]
[PlyCount "72"]
[EventDate "2024.04.13"]
[EventType "team-tourn"]
[SourceTitle "playchess.com"]
[Source "ChessBase"]
[SourceQuality "1"]
[TimeControl "900+5"]

{[%evp 9,72,10,17,11,10,0,9,13,10,14,20,17,41,34,31,31,29,22,40,0,8,0,3,2,0,0,40,12,17,6,12,-27,0,0,0,0,0,0,0,-42,-7,-15,27,41,42,42,42,13,42,14,35,35,35,35,35,16,31,23,48,0,48,0,48,-1914,-1883]} 1. d4 {[%emt 0:00:01]} d5 {[%emt 0:00:01]} 2. Nf3 {[%emt 0:00:02]} Nf6 {[%emt 0:00:01]} 3. e3 {[%emt 0:00:00]} c6 {[%emt 0:00:03]} 4. Bd3 {[%emt 0:00:05]} Bg4 {[%emt 0:00:04]} 5. Nbd2 {[%emt 0:00:09]} e6 {[%emt 0:00:06]} 6. b3 {[%emt 0:00:25]} Nbd7 {[%emt 0:00:03]} 7. h3 {[%emt 0:00:06]} Bh5 {[%emt 0:00:01][%cal Oe6e5]} 8. Bb2 {[%emt 0:00:06] The position is equal.} Bd6 {[%emt 0:00:15]} 9. c4 {[%emt 0:00:20]} O-O {[%emt 0:00:06][%cal Oe6e5]} 10. Qc2 {[%emt 0:00:21]} a5 {[%emt 0:00:26]} 11. a3 {[%emt 0:00:34]} Bg6 {[%emt 0:00:28]} 12. Bxg6 {[%emt 0:00:27]} hxg6 {[%emt 0:00:04]} 13. O-O {[%emt 0:01:30]} Qe7 {[%emt 0:00:29]} 14. e4 {[%emt 0:01:18]} dxe4 {[%emt 0:00:05]} 15. Nxe4 {[%emt 0:01:12]} Nxe4 {[%emt 0:00:01]} 16. Qxe4 {[%emt 0:00:01]} Nf6 {[%emt 0:00:01]} 17. Qe2 {[%emt 0:00:25]} Qd7 {[%emt 0:00:19]} 18. Rfd1 {[%emt 0:00:53]} b5 {[%emt 0:01:14]} 19. Rac1 {[%emt 0:01:42]} Qb7 {[%emt 0:00:46]} 20. Qd3 {[%emt 0:03:32]} Rab8 {[%emt 0:00:49]} 21. Nd2 {[%emt 0:02:13]} Bf4 {[%emt 0:00:24]} 22. Rc2 {[%emt 0:00:10]} Bxd2 {[%emt 0:00:22]} 23. Rdxd2 {[%emt 0:00:14]} Rfd8 {[%emt 0:00:12]} 24. f3 {[%emt 0:00:12]} Kf8 {[%emt 0:02:12]} 25. Qc3 {[%emt 0:00:00]} b4 {[%emt 0:00:19]} 26. axb4 {[%emt 0:00:22]} axb4 {[%emt 0:00:05]} 27. Qe3 {[%emt 0:00:08]} Kg8 {[%emt 0:00:37]} 28. Kh1 {[%emt 0:00:22]} (28. g4 {is more complex.} Qc7 29. Kg2 Qd6 30. h4) 28... Ra8 {[%emt 0:00:14]} 29. Qe5 {[%emt 0:00:23]} Qa6 {[%emt 0:00:31]} 30. Kg1 {[%emt 0:00:05]} Qa2 {[%emt 0:00:14]} 31. Qe3 {[%emt 0:00:06]} Qa5 {[%emt 0:00:22]} 32. Kh1 {[%emt 0:00:03]} Qh5 {[%emt 0:00:10]} 33. Kh2 {[%emt 0:00:11]} Qa5 {[%emt 0:00:24]} 34. Kh1 {[%emt 0:00:02]} (34. g4 $14 {feels stronger.}) 34... Qb6 {[%emt 0:00:04]} (34... Qh5 $11) 35. Kg1 {[%emt 0:00:04]} (35. g4 $14) 35... Ra7 {[%emt 0:00:30] [#]} (35... Qa5 $11) 36. d5 $2 {[%emt 0:00:12][%mdl 8192]} Qxe3+ {[%emt 0:00:03] Weighted Error Value: White=0.35/Black=0.14 (very precise) .  Loses game:     	White=1     	---        Mistake:       	White=2     	Black=2      Inaccurate:     	White=6     	Black=5      OK:         	White=7     	Black=4      Best:        	---       	Black=1} 0-1

[Event "Wuerttemberg Rapid Teams 2024"]
[Site "B?blingen, Germany"]
[Date "2024.04.13"]
[Round "9.29"]
[White "Strathmann, Sacha"]
[Black "Kulm, Justin"]
[Result "1-0"]
[ECO "B30"]
[WhiteElo "2125"]
[BlackElo "1963"]
[Annotator "RC"]
[PlyCount "41"]
[EventDate "2024.04.13"]
[EventType "team-tourn"]
[SourceTitle "playchess.com"]
[Source "ChessBase"]
[SourceQuality "1"]
[TimeControl "900+5"]

1. e4 {[%emt 0:00:02]} c5 {[%emt 0:00:02]} 2. Nf3 {[%emt 0:00:01]} Nc6 {[%emt 0:00:05]} 3. b4 {[%emt 0:00:11]} Nxb4 {[%emt 0:00:02]} 4. c3 {[%emt 0:00:01]} Nc6 {[%emt 0:00:01]} 5. d4 {[%emt 0:00:01]} cxd4 {[%emt 0:00:02]} 6. cxd4 {[%emt 0:00:01]} e6 {[%emt 0:00:01]} 7. Nc3 {[%emt 0:00:02]} Bb4 {[%emt 0:00:44]} 8. Bd2 {[%emt 0:00:02]} Nf6 {[%emt 0:01:31]} 9. Bd3 {[%emt 0:00:36]} d5 {[%emt 0:01:58]} 10. e5 {[%emt 0:00:06]} Bxc3 {[%emt 0:00:04]} 11. Bxc3 {[%emt 0:00:19]} Ne4 {[%emt 0:00:11]} 12. Bxe4 {[%emt 0:00:36]} dxe4 {[%emt 0:00:03]} 13. Nd2 {[%emt 0:00:07]} Nxd4 {[%emt 0:01:44]} 14. Nxe4 {[%emt 0:00:21]} Nb5 {[%emt 0:01:38]} 15. Bb4 {[%emt 0:01:35]} Qd5 {[%emt 0:01:32]} 16. Qg4 {[%emt 0:03:42]} h5 {[%emt 0:03:01]} 17. Qf4 {[%emt 0:00:09]} a5 {[%emt 0:02:05]} 18. Rd1 {[%emt 0:01:00]} Qxa2 {[%emt 0:01:21]} 19. Bd6 {[%emt 0:00:39]} Bd7 {[%emt 0:00:22]} 20. O-O {[%emt 0:00:07]} g6 {[%emt 0:00:09]} 21. Qf6 {[%emt 0:00:05]} 1-0

[Event "Wuerttemberg Rapid Teams 2024"]
[Site "B?blingen, Germany"]
[Date "2024.04.13"]
[Round "9.30"]
[White "Bueble, Joschua"]
[Black "Baur, Frank"]
[Result "0-1"]
[ECO "D31"]
[WhiteElo "1972"]
[BlackElo "2050"]
[Annotator "RC"]
[PlyCount "90"]
[EventDate "2024.04.13"]
[EventType "team-tourn"]
[SourceTitle "playchess.com"]
[Source "ChessBase"]
[SourceQuality "1"]
[TimeControl "900+5"]

1. d4 {[%emt 0:00:02]} d5 {[%emt 0:00:14]} 2. c4 {[%emt 0:00:01]} e6 {[%emt 0:00:01]} 3. Nc3 {[%emt 0:00:01]} a6 {[%emt 0:00:02]} 4. Nf3 {[%emt 0:00:03]} dxc4 {[%emt 0:00:08]} 5. a4 {[%emt 0:00:08]} Nc6 {[%emt 0:00:15]} 6. e3 {[%emt 0:00:25]} Na5 {[%emt 0:00:30]} 7. Ne5 {[%emt 0:00:16]} Bb4 {[%emt 0:00:50]} 8. Nxc4 {[%emt 0:00:33]} c5 {[%emt 0:00:25]} 9. dxc5 {[%emt 0:03:45]} Qxd1+ {[%emt 0:00:31]} 10. Kxd1 {[%emt 0:00:01]} Nxc4 {[%emt 0:00:54]} 11. Bxc4 {[%emt 0:00:03]} Bxc5 {[%emt 0:00:49]} 12. Ne4 {[%emt 0:00:27]} Be7 {[%emt 0:00:09]} 13. Ke2 {[%emt 0:00:52]} Nf6 {[%emt 0:00:13]} 14. Nc3 {[%emt 0:00:37]} Bd7 {[%emt 0:00:37]} 15. e4 {[%emt 0:00:48]} Bc6 {[%emt 0:01:33]} 16. f3 {[%emt 0:00:11]} O-O {[%emt 0:00:06]} 17. Be3 {[%emt 0:00:42]} Rac8 {[%emt 0:00:22]} 18. b3 {[%emt 0:00:40]} Nd7 {[%emt 0:00:15]} 19. Kf2 {[%emt 0:00:42]} Rfd8 {[%emt 0:03:32]} 20. Rad1 {[%emt 0:01:07]} Bc5 {[%emt 0:00:12]} 21. Rd2 {[%emt 0:02:39]} Bb4 {[%emt 0:00:56]} 22. Rc2 {[%emt 0:00:03]} Ne5 {[%emt 0:00:42]} 23. Na2 {[%emt 0:00:14]} Be7 {[%emt 0:00:56]} 24. Be2 {[%emt 0:01:15]} Nd3+ {[%emt 0:00:13]} 25. Bxd3 {[%emt 0:00:51]} Rxd3 {[%emt 0:00:01]} 26. Rc3 {[%emt 0:00:04]} Rxc3 {[%emt 0:00:23]} 27. Nxc3 {[%emt 0:00:03]} b5 {[%emt 0:00:25]} 28. axb5 {[%emt 0:00:18]} axb5 {[%emt 0:00:21]} 29. Bd4 {[%emt 0:00:10]} b4 {[%emt 0:00:20]} 30. Na4 {[%emt 0:00:07]} Bb5 {[%emt 0:00:22]} 31. Ke3 {[%emt 0:00:08]} Rc2 {[%emt 0:00:06]} 32. g4 {[%emt 0:00:09]} f6 {[%emt 0:00:24]} 33. f4 {[%emt 0:00:04]} Re2+ {[%emt 0:00:15]} 34. Kf3 {[%emt 0:00:00]} Rxe4 {[%emt 0:00:03]} 35. Kxe4 {[%emt 0:00:07]} Bc6+ {[%emt 0:00:01]} 36. Kd3 {[%emt 0:00:01]} Bxh1 {[%emt 0:00:01]} 37. Kc4 {[%emt 0:00:03]} Bd5+ {[%emt 0:00:02]} 38. Kb5 {[%emt 0:00:01]} Bxb3 {[%emt 0:00:06]} 39. Nc5 {[%emt 0:00:07]} Bd1 {[%emt 0:00:18]} 40. g5 {[%emt 0:00:06]} b3 {[%emt 0:00:20]} 41. Kc4 {[%emt 0:00:07]} fxg5 {[%emt 0:00:05]} 42. fxg5 {[%emt 0:00:07]} Bxg5 {[%emt 0:00:15]} 43. Nxe6 {[%emt 0:00:23]} Bc1 {[%emt 0:00:06]} 44. Bxg7 {[%emt 0:00:03]} Kf7 {[%emt 0:00:11]} 45. Nd4 {[%emt 0:00:03]} b2 {[%emt 0:00:05]} 0-1

[Event "Wuerttemberg Rapid Teams 2024"]
[Site "B?blingen, Germany"]
[Date "2024.04.13"]
[Round "9.31"]
[White "Schmid, Tim"]
[Black "Schraegle, Thorsten"]
[Result "1-0"]
[ECO "C42"]
[WhiteElo "1765"]
[BlackElo "1918"]
[Annotator "TA"]
[PlyCount "81"]
[EventDate "2024.04.13"]
[EventType "team-tourn"]
[SourceTitle "playchess.com"]
[Source "ChessBase"]
[SourceQuality "1"]
[TimeControl "900+5"]

{[%evp 21,80,12,22,18,32,14,52,71,160,143,281,172,176,170,29996,489,29995,1787,29977,2020,29969,3046,29986,29986,2929,707,686,662,994,986,2270,2160,29987,916,902,470,485,468,591,458,528,536,714,609,605,608,826,538,660,655,1828,774,29997,29991,29996,29997,29997,29998,29998,29999,29999]} 1. e4 {[%emt 0:00:01]} e5 {[%emt 0:00:03]} 2. Nf3 {[%emt 0:00:02]} Nf6 {[%emt 0:00:01]} 3. Nxe5 {[%emt 0:00:01]} d6 {[%emt 0:00:00]} 4. Nf3 {[%emt 0:00:02]} Nxe4 {[%emt 0:00:02]} 5. d4 {[%emt 0:00:01]} d5 {[%emt 0:00:00]} 6. Bd3 {[%emt 0:00:01]} Bd6 {[%emt 0:00:01]} 7. O-O {[%emt 0:00:02]} O-O {[%emt 0:00:01]} 8. c4 {[%emt 0:00:03]} c6 {[%emt 0:00:01]} 9. Nc3 {[%emt 0:00:01]} Nxc3 {[%emt 0:00:01]} 10. bxc3 {[%emt 0:00:02]} dxc4 {[%emt 0:00:02]} 11. Bxc4 {[%emt 0:00:02]} Bf5 {[%emt 0:00:01]} 12. Bg5 {[%emt 0:00:04]} Qa5 {[%emt 0:00:01]} 13. d5 {[%emt 0:00:02] [#] Black must now prevent dxc6.} Qxc3 {[%emt 0:02:19]} 14. Rc1 {[%emt 0:00:11] White is slightly better.} Qa3 {[%emt 0:00:01]} (14... Qb4 $142) 15. Nd4 $16 {[%emt 0:01:10][%cal Bf3d4,Bd4f5,Bf5h6][%mdl 32]} Be4 {[%emt 0:01:56]} (15... Bg6 $16 {keeps fighting.}) 16. dxc6 {[%emt 0:00:58]} Bxc6 {[%emt 0:00:02]} (16... Nxc6 $2 17. Nb5 Qc5 18. Nxd6 $18 (18. Qxd6 Qxg5 19. Qg3 Qxg3 $17)) 17. Nf5 $36 {[%emt 0:01:05][%cal Od1d4][%mdl 2048] White wants to mate with Qd4! Keeping Black busy.} Bb4 $2 {[%emt 0:03:59] [#]} (17... Qa5 $18 18. Qd3 Bc7) 18. Qg4 {[%emt 0:00:43]} (18. Qd4 $142 Bc3 19. Rxc3 Qxc3 20. Qxc3 Kh8 21. Qxg7#) 18... g6 {[%emt 0:01:00]} (18... Qb2 $18 19. Rb1 (19. Nh6+ Kh8 $18) 19... Qe5 20. Rxb4 (20. Nh6+ Kh8 $18) 20... Bd7) 19. Bf6 {[%emt 0:01:14]} (19. Qd4 $142 gxf5 20. Bh6 Bc3 21. Rxc3 (21. Qxc3 Qxc3 22. Rxc3 f4 $18) 21... Qxc3 22. Qxc3 Re8 23. Qg7#) 19... Re8 {[%emt 0:01:09]} 20. Nh6+ {[%emt 0:05:18]} Kf8 {[%emt 0:00:00][%cal Bg8f8,Bf8g7,Bg7h8][%mdl 32]} 21. Bxf7 {[%emt 0:01:09]} Nd7 {[%emt 0:00:02]} 22. Bxe8 {[%emt 0:00:28]} Nxf6 {[%emt 0:00:01]} 23. Qf4 {[%emt 0:00:18]} (23. Qe6 $142 Bd5 24. Qxf6+ Kxe8 25. Qe5+ Be7 26. Qxd5 Qd6 27. Qg8+ (27. Qxb7 Rb8 $18) 27... Kd7 28. Qxa8) 23... Kg7 $18 {[%emt 0:00:00]} 24. Bxc6 {[%emt 0:00:23]} bxc6 {[%emt 0:00:01]} 25. Rxc6 {[%emt 0:00:26]} Rf8 {[%emt 0:00:12]} 26. Rc7+ {[%emt 0:00:58]} Kh8 {[%emt 0:00:00]} 27. Rd1 {[%emt 0:01:32]} (27. Nf7+ $142 Rxf7 28. Rxf7 Be7 29. Qh6 (29. Rxf6 a5 30. Rf7 Kg8 31. Qc4 Qc3 32. Qe6 Bf8 33. Rf3+ Kh8 34. Rxc3 Kg7) 29... Bf8 30. Rxf8+ (30. Qxf8+ Qxf8 31. Rxf8+ Kg7 $18) 30... Ng8 31. Qf4 Qe7 32. Rf7 (32. Qd4+ Qg7 $18)) 27... Qb2 {[%emt 0:01:12]} 28. Qd4 {[%emt 0:00:30]} Qxd4 {[%emt 0:01:06]} 29. Rxd4 {[%emt 0:00:02]} Ba5 {[%emt 0:00:01]} 30. Rf7 {[%emt 0:00:27]} Re8 {[%emt 0:00:31][%cal Re8e1]} 31. g3 {[%emt 0:00:03]} (31. Rxf6 $2 Re1#) 31... Bc3 {[%emt 0:00:07]} 32. Ra4 {[%emt 0:00:08]} a5 {[%emt 0:00:13]} 33. Rc4 {[%emt 0:00:06] Against Rc8} Nd5 {[%emt 0:00:03]} 34. Rc6 {[%emt 0:00:13] Hoping for Rc5.} Bd2 {[%emt 0:02:59]} 35. Ng4 {[%emt 0:00:07]} Rd8 {[%emt 0:00:35]} 36. Ra6 {[%emt 0:00:03]} (36. Rcc7 $142 Re8 37. f4 (37. Rxh7+ Kg8 $18) 37... Be3+ 38. Kg2 Bxf4 39. gxf4 (39. Rxh7+ Kg8 $18) 39... Re2+ 40. Kg1 Re1+ 41. Kf2) 36... Nb4 {[%emt 0:00:15]} 37. Raa7 {[%emt 0:00:02] White mates.} Bc3 {[%emt 0:00:01]} 38. Rxh7+ {[%emt 0:00:02]} Kg8 {[%emt 0:00:00]} 39. Nh6+ {[%emt 0:00:03]} Kf8 {[%emt 0:00:01]} 40. Rhf7+ {[%emt 0:00:01]} Ke8 {[%emt 0:00:01]} 41. Rae7# {[%emt 0:00:02] Black did not feel at home in the position after the opening.   Weighted Error Value: White=0.93/Black=1.62.  Mistake:       	White=1     	Black=4      Inaccurate:     	White=1     	Black=4      OK:         	White=4     	Black=2      Best:        	White=1     	---} 1-0

[Event "Wuerttemberg Rapid Teams 2024"]
[Site "B?blingen, Germany"]
[Date "2024.04.13"]
[Round "9.35"]
[White "Hadziselimovic, Adnan"]
[Black "Vrabac, Branko"]
[Result "1-0"]
[ECO "A30"]
[WhiteElo "2053"]
[BlackElo "1932"]
[Annotator "NA RC"]
[PlyCount "68"]
[EventDate "2024.04.13"]
[EventType "team-tourn"]
[SourceTitle "playchess.com"]
[Source "ChessBase"]
[SourceQuality "1"]
[TimeControl "900+5"]

1. c4 {[%emt 0:00:01]} b6 {[%emt 0:00:04]} 2. Nf3 {[%emt 0:00:05]} Bb7 {[%emt 0:00:09]} 3. g3 {[%emt 0:00:05]} c5 {[%emt 0:00:25]} 4. Bg2 {[%emt 0:00:02]} Nf6 {[%emt 0:00:14]} 5. O-O {[%emt 0:00:03]} g6 {[%emt 0:00:33]} 6. Nc3 {[%emt 0:00:04]} Bg7 {[%emt 0:00:01]} 7. d3 {[%emt 0:00:04]} O-O {[%emt 0:00:11]} 8. Bd2 {[%emt 0:00:06]} Nc6 {[%emt 0:00:45]} 9. Qc1 {[%emt 0:00:48]} Qc7 {[%emt 0:01:47]} 10. Bh6 {[%emt 0:00:11]} a6 {[%emt 0:00:29]} 11. Bxg7 {[%emt 0:00:17]} Kxg7 {[%emt 0:00:02]} 12. a3 {[%emt 0:00:31]} Rfd8 {[%emt 0:01:22]} 13. Rb1 {[%emt 0:00:09]} Rab8 {[%emt 0:00:34]} 14. b4 {[%emt 0:00:03]} cxb4 {[%emt 0:00:44]} 15. axb4 {[%emt 0:00:02]} d6 {[%emt 0:00:38]} 16. Qb2 {[%emt 0:00:38]} Kg8 {[%emt 0:00:26]} 17. Qd2 {[%emt 0:00:14]} a5 {[%emt 0:00:52]} 18. bxa5 {[%emt 0:00:16]} bxa5 {[%emt 0:00:13]} 19. Qh6 {[%emt 0:00:01]} Ng4 {[%emt 0:01:19]} 20. Qf4 {[%emt 0:00:53]} h5 {[%emt 0:00:39]} 21. h3 {[%emt 0:00:01]} Nf6 {[%emt 0:01:17]} 22. Qh6 {[%emt 0:00:02]} Nh7 {[%emt 0:00:47]} 23. Nh4 {[%emt 0:01:17]} Ne5 {[%emt 0:01:15]} 24. Nd5 {[%emt 0:02:14]} Bxd5 {[%emt 0:00:16]} 25. Bxd5 {[%emt 0:00:04]} e6 {[%emt 0:00:18]} 26. Be4 {[%emt 0:00:15]} f5 {[%emt 0:00:17]} 27. f4 {[%emt 0:01:06]} fxe4 {[%emt 0:00:37]} 28. fxe5 {[%emt 0:00:02]} Qg7 {[%emt 0:00:32]} 29. Qxg7+ {[%emt 0:00:46]} Kxg7 {[%emt 0:00:01]} 30. Rxb8 {[%emt 0:00:05]} Rxb8 {[%emt 0:00:03]} 31. exd6 {[%emt 0:00:01]} exd3 {[%emt 0:00:25]} 32. exd3 {[%emt 0:00:01]} Nf6 {[%emt 0:00:19]} 33. Nf3 {[%emt 0:00:17]} a4 {[%emt 0:00:09]} 34. Nd4 {[%emt 0:00:11]} e5 {[%emt 0:00:12]} 1-0

[Event "Wuerttemberg Rapid Teams 2024"]
[Site "B?blingen, Germany"]
[Date "2024.04.13"]
[Round "9.36"]
[White "Ameln, Till"]
[Black "Valchev, Martin V"]
[Result "0-1"]
[ECO "A48"]
[WhiteElo "1887"]
[BlackElo "1529"]
[Annotator "NA RC COMBH"]
[PlyCount "64"]
[EventDate "2024.04.13"]
[EventType "team-tourn"]
[SourceTitle "playchess.com"]
[Source "ChessBase"]
[SourceQuality "1"]
[TimeControl "900+5"]

1. d4 {[%emt 0:00:01]} d6 {[%emt 0:00:04]} 2. Bf4 {[%emt 0:00:13]} Nf6 {[%emt 0:00:07]} 3. Nf3 {[%emt 0:00:08]} g6 {[%emt 0:00:04]} 4. Nc3 {[%emt 0:00:08]} Bg7 {[%emt 0:00:03]} 5. Qd2 {[%emt 0:00:17]} h5 {[%emt 0:00:23]} 6. e4 {[%emt 0:00:07]} c6 {[%emt 0:00:21]} 7. O-O-O {[%emt 0:00:19]} Bg4 {[%emt 0:00:18]} 8. Be2 {[%emt 0:00:21]} Nbd7 {[%emt 0:00:45]} 9. e5 {[%emt 0:00:43]} Nd5 {[%emt 0:00:18]} 10. Nxd5 {[%emt 0:00:15]} cxd5 {[%emt 0:00:06]} 11. exd6 {[%emt 0:00:12]} e6 {[%emt 0:00:34]} 12. Bb5 {[%emt 0:00:45]} Bxf3 {[%emt 0:00:49]} 13. gxf3 {[%emt 0:00:27]} a6 {[%emt 0:00:28]} 14. Bxd7+ {[%emt 0:00:17]} Kxd7 {[%emt 0:00:28]} 15. Qb4 {[%emt 0:00:28]} b5 {[%emt 0:00:32]} 16. Rd3 {[%emt 0:02:24]} Qb6 {[%emt 0:00:13]} 17. a4 {[%emt 0:01:58]} Rhc8 {[%emt 0:00:31]} 18. a5 {[%emt 0:00:40]} Rc4 {[%emt 0:02:37]} 19. Qa3 {[%emt 0:01:23]} Qd8 {[%emt 0:01:03]} 20. Be3 {[%emt 0:01:08]} Rac8 {[%emt 0:00:16]} 21. c3 {[%emt 0:00:20]} Qf6 {[%emt 0:00:53]} 22. f4 {[%emt 0:00:33]} Ra4 {[%emt 0:00:16]} 23. Qb3 {[%emt 0:00:15]} Ra1+ {[%emt 0:00:06]} 24. Kd2 {[%emt 0:00:11]} Rxh1 {[%emt 0:00:07]} 25. Qa3 {[%emt 0:01:02]} Bh6 {[%emt 0:00:23]} 26. c4 {[%emt 0:01:18]} dxc4 {[%emt 0:00:23]} 27. Rc3 {[%emt 0:00:11]} Rxh2 {[%emt 0:00:23]} 28. b3 {[%emt 0:00:27]} Bxf4 {[%emt 0:00:19]} 29. Ke2 {[%emt 0:00:23]} Bxe3 {[%emt 0:00:16]} 30. Kxe3 {[%emt 0:00:13]} Qxf2+ {[%emt 0:00:15]} 31. Ke4 {[%emt 0:00:11]} Rh4+ {[%emt 0:00:24]} 32. Ke5 {[%emt 0:00:16]} Qxd4# 0-1